[Event "Azerbaijan-ch 1st League 2025"]
[Site "Baku"]
[Date "2025.01.14"]
[Round "9.11"]
[White "Hajialiyev, Islam"]
[Black "Davudov, Tunar"]
[Result "0-1"]
[Annotator "TA"]
[ECO "E07"]
[WhiteElo "2217"]
[BlackElo "2225"]
[PlyCount "124"]
[EventDate "2025.01.05"]
[EventType "swiss"]
[EventCountry "AZE"]
[SourceTitle "playchess.com"]
[Source "ChessBase"]
[SourceQuality "1"]
[TimeControl "40/5400+30:1800+30"]

{[%evp 17,124,20,18,0,0,-36,-36,-42,-26,-68,-52,-82,-85,-106,-92,-100,-75,-93,-95,-97,-86,-83,-75,-77,-60,-91,-56,-67,-35,-56,-22,-28,-27,-37,-38,-60,-65,-64,-48,-115,-107,-123,-123,-116,-115,-133,-130,-133,-134,-127,-120,-155,-126,-260,-228,-289,-289,-316,-304,-356,-333,-345,-326,-326,-304,-483,-483,-483,-477,-467,-420,-475,-410,-418,-411,-418,-418,-426,-411,-464,-780,-783,-760,-785,-762,-716,-589,-1216,-957,-1112,-1041,-1041,-1008,-1633,-1384,-7700,-6634,-5122,-4161,-12826,-12819,-12460,-11027,-12333,-5716,-7164,-5712,-29974,-29976]} 1. Nf3 {[%emt 0:00:51]} Nf6 {[%emt 0:00:14]} 2. g3 {[%emt 0:00:16]} d5 {[%emt 0:00:08]} 3. Bg2 {[%emt 0:00:03]} e6 {[%emt 0:00:07]} 4. d4 {[%emt 0:00:02]} Be7 {[%emt 0:00:09]} 5. O-O {[%emt 0:00:04]} O-O {[%emt 0:00:23]} 6. c4 {[%emt 0:00:02]} Nbd7 {[%emt 0:00:23]} 7. Nc3 {[%emt 0:00:11]} dxc4 {[%emt 0:00:17]} 8. e4 {[%emt 0:03:40]} Rb8 {[%emt 0:00:25]} 9. a4 {[%emt 0:01:46]} a6 {[%emt 0:00:34]} 10. Qe2 {[%emt 0:02:47]} b5 {[%emt 0:03:56]} 11. axb5 {[%emt 0:02:16]} axb5 {[%emt 0:00:01]} 12. Rd1 {[%emt 0:01:24]} b4 {[%emt 0:04:53]} 13. Nb1 {[%emt 0:02:40][%cal Ob1d2]} Bb7 {[%emt 0:01:21]} 14. Ne5 {[%emt 0:07:27]} Ra8 $1 {[%emt 0:16:14]} 15. Rxa8 {[%emt 0:00:43]} Qxa8 {[%emt 0:00:22]} 16. Bg5 {[%emt 0:02:55]} Rd8 {[%emt 0:00:35]} (16... Bxe4 $2 17. Bxe4 Nxe4 18. Bxe7 $18) (16... Nxe5 $6 17. dxe5 Nd5 18. exd5 Bxg5 19. Qxc4 $11) 17. Nxd7 {[%emt 0:10:42]} Rxd7 {[%emt 0:00:11]} 18. d5 {[%emt 0:00:37]} h6 {[%emt 0:21:00]} 19. Bxf6 {[%emt 0:01:54]} Bxf6 {[%emt 0:00:43]} 20. Qxc4 {[%emt 0:00:06]} exd5 {[%emt 0:06:22]} (20... Bxb2 21. Qxb4 Be5 22. Nc3 $11) 21. exd5 {[%emt 0:00:12]} Be7 {[%emt 0:00:39]} ({Don't play} 21... Bxb2 $6 22. Qxb4 Be5 23. Nc3 $11) 22. Bf3 {[%emt 0:03:28]} Qd8 {[%emt 0:05:03]} 23. Qb3 {[%emt 0:03:13]} Bf8 {[%emt 0:04:21]} 24. Nc3 {[%emt 0:05:48]} Qf6 {[%emt 0:04:04]} 25. Ne2 {[%emt 0:05:52]} Bc5 {[%emt 0:02:02]} 26. Kg2 {[%emt 0:05:21]} Qb6 {[%emt 0:00:31]} 27. Rf1 {[%emt 0:04:45]} Ba6 {[%emt 0:00:47]} 28. Rc1 {[%emt 0:06:16] [#]} (28. Ra1 $15) 28... Bb5 $1 $17 {[%emt 0:06:56]} (28... Bxf2 29. Rc6 Qa7 30. Rxa6 (30. Qxb4 Bxe2 31. Bxe2 Bb6 $11) 30... Qxa6 31. Kxf2 $11) 29. Rc2 {[%emt 0:06:37]} Bxf2 {[%emt 0:05:02] Black is more active.} 30. Qxb4 {[%emt 0:00:36]} Bxe2 {[%emt 0:00:12] A strong pair of Bishops.} 31. Qxb6 {[%emt 0:00:05]} Bxf3+ {[%emt 0:00:07]} ({Much less strong is} 31... Bxb6 32. Rxe2 Bc5 33. Re8+ Kh7 34. Kf1 $15) 32. Kxf2 {[%emt 0:00:03]} cxb6 {[%emt 0:00:06]} 33. Kxf3 {[%emt 0:00:09] and Rc8+ would now be decisive} Rxd5 {[%emt 0:00:05][%mdl 4096] Endgame KR-KR. Black is a pawn up.} 34. h4 {[%emt 0:00:37]} Rb5 {[%emt 0:00:18]} 35. Kg4 {[%emt 0:01:44]} (35. g4 $17) 35... g6 {[%emt 0:00:54]} 36. Rc8+ {[%emt 0:01:42]} Kg7 {[%emt 0:00:08]} 37. Rc2 {[%emt 0:00:01]} Rb3 {[%emt 0:02:07]} 38. Kf4 {[%emt 0:00:37]} h5 {[%emt 0:00:25]} 39. Rd2 {[%emt 0:03:27]} Kh6 {[%emt 0:03:12]} 40. Rc2 {[%emt 0:00:00]} f6 {[%emt 0:00:00]} 41. Rc6 {[%emt 0:04:10]} (41. Rg2 $142) 41... Rxb2 $19 {[%emt 0:05:17]} 42. Ke3 {[%emt 0:00:16]} Kg7 {[%emt 0:06:40]} 43. Rc7+ {[%emt 0:00:19]} Kf8 {[%emt 0:00:07]} 44. Rb7 {[%emt 0:01:14]} Rb5 {[%emt 0:00:22]} 45. Ke4 {[%emt 0:00:49]} Rb3 {[%emt 0:01:47]} 46. Kf4 {[%emt 0:00:24]} b5 {[%emt 0:06:50]} 47. Rb8+ {[%emt 0:00:20]} Ke7 {[%emt 0:00:52]} 48. Rb7+ {[%emt 0:00:03]} Kd6 {[%emt 0:00:23]} 49. Rb6+ {[%emt 0:00:14]} Kc5 {[%emt 0:00:12]} 50. Rxf6 {[%emt 0:00:09]} Rb4+ {[%emt 0:00:03]} 51. Ke3 {[%emt 0:00:11]} Rg4 {[%emt 0:00:11]} 52. Rf3 {[%emt 0:00:01]} Rd4 {[%emt 0:00:23]} 53. Rf8 {[%emt 0:00:24]} Rd6 {[%emt 0:00:20]} 54. Rc8+ {[%emt 0:00:01]} Kb4 {[%emt 0:00:12]} 55. Rc1 {[%emt 0:00:06]} Ka3 {[%emt 0:00:35] and ...b4 would now be decisive} 56. Ra1+ {[%emt 0:00:25]} Kb2 {[%emt 0:00:07]} 57. Ra8 {[%emt 0:00:03]} b4 {[%emt 0:00:05]} 58. Rc8 {[%emt 0:00:03]} b3 {[%emt 0:00:05]} 59. Rb8 {[%emt 0:00:01]} Ka2 {[%emt 0:00:12]} 60. Ra8+ {[%emt 0:00:10] [#]} Kb1 $1 {[%emt 0:00:05]} 61. Rb8 {[%emt 0:00:01]} b2 {[%emt 0:00:07] ( -> ...Ra6)} 62. Ke2 {[%emt 0:00:03]} Ra6 {[%emt 0:00:07]} 0-1

[Event "Azerbaijan-ch 1st League 2025"]
[Site "Baku"]
[Date "2025.01.14"]
[Round "9.12"]
[White "Azimov, Yasin"]
[Black "Ahmadov, Fariz"]
[Result "1-0"]
[Annotator "TA"]
[ECO "E62"]
[WhiteElo "1880"]
[BlackElo "2224"]
[PlyCount "107"]
[EventDate "2025.01.05"]
[EventType "swiss"]
[EventCountry "AZE"]
[SourceTitle "playchess.com"]
[Source "ChessBase"]
[SourceQuality "1"]
[TimeControl "40/5400+30:1800+30"]

{[%evp 16,107,38,-37,-23,-33,-17,-28,-26,-20,-25,-41,-30,-45,-13,-110,-105,-102,-100,-150,-120,-141,-119,-183,-175,-195,-205,-204,-150,-147,-144,-252,-219,-304,-306,-308,-308,-304,-302,-336,-303,-335,-313,-325,-277,-311,-230,-240,-162,-162,-148,-124,-87,-87,-34,-41,-39,-66,-12,-28,0,-13,-12,-12,-11,-14,0,0,120,113,115,114,116,118,118,79,139,139,145,90,139,87,87,87,1043,972,1111,981,974,869,672,92,307,92]} 1. d4 {[%emt 0:00:10]} g6 {[%emt 0:02:47]} 2. Nf3 {[%emt 0:01:01]} Bg7 {[%emt 0:00:58]} 3. g3 {[%emt 0:00:47]} Nf6 {[%emt 0:01:21]} 4. Bg2 {[%emt 0:00:13]} O-O {[%emt 0:00:06]} 5. O-O {[%emt 0:00:08]} d6 {[%emt 0:00:03]} 6. c4 {[%emt 0:01:10]} Nc6 {[%emt 0:02:23]} 7. Nc3 {[%emt 0:00:20]} Bf5 {[%emt 0:01:28]} 8. Re1 {[%emt 0:03:17]} Ne4 {[%emt 0:01:49]} 9. Nh4 {[%emt 0:04:00]} (9. Nxe4 $14 Bxe4 10. d5) 9... Nxc3 $15 {[%emt 0:00:18]} 10. bxc3 {[%emt 0:00:02]} Bd7 {[%emt 0:00:55]} 11. Rb1 {[%emt 0:02:09]} Rb8 {[%emt 0:01:15]} 12. e4 {[%emt 0:03:06]} e5 {[%emt 0:03:24][%cal Re5d4]} 13. Nf3 {[%emt 0:09:47]} Na5 {[%emt 0:02:23]} 14. Qd3 {[%emt 0:03:34]} c5 {[%emt 0:02:43]} 15. dxe5 {[%emt 0:06:50]} (15. Be3 $11) 15... dxe5 $17 {[%emt 0:00:06]} 16. Bg5 {[%emt 0:01:45]} Qe8 {[%emt 0:01:57]} 17. Qd6 {[%emt 0:19:20]} (17. Be3 Rc8 18. Nd2) 17... Rc8 {[%emt 0:01:41]} 18. Bf1 {[%emt 0:08:09]} b6 {[%emt 0:03:20]} 19. Qd2 {[%emt 0:06:43]} (19. Qe7 $17) 19... Be6 $19 {[%emt 0:02:51]} 20. Bh6 {[%emt 0:00:53]} Rd8 {[%emt 0:00:47]} (20... Bxc4 21. Bxg7 Kxg7 22. Bxc4 Nxc4 23. Qe2 $15) 21. Qc1 {[%emt 0:02:02]} Bxc4 {[%emt 0:00:42]} 22. Bxg7 {[%emt 0:01:14]} Kxg7 {[%emt 0:00:28]} 23. Nh4 {[%emt 0:02:45]} (23. Qc2 $17 {is a better defense.}) 23... f6 {[%emt 0:03:20]} (23... Bxa2 24. Nf5+ Kh8 (24... gxf5 25. Qg5+ Kh8 26. Qf6+ Kg8 27. Rxb6 $11) 25. Qh6 $17) 24. f4 {[%emt 0:02:38]} Bxf1 {[%emt 0:01:22]} (24... Bxa2 25. Ra1 Bg8 26. Qe3) 25. Rxf1 {[%emt 0:00:32]} Nc4 {[%emt 0:00:15]} 26. Rf2 {[%emt 0:02:16] Wards off Nd2} Qc6 {[%emt 0:01:19]} 27. Qe1 {[%emt 0:01:11]} exf4 {[%emt 0:00:48]} 28. gxf4 {[%emt 0:00:34]} Rfe8 {[%emt 0:01:26]} 29. e5 {[%emt 0:00:29]} Kh8 {[%emt 0:10:29]} 30. Rg2 {[%emt 0:02:49]} f5 {[%emt 0:06:10]} 31. Qg3 {[%emt 0:03:31]} Qe6 {[%emt 0:03:51]} 32. Qh3 {[%emt 0:00:40]} Rg8 {[%emt 0:00:50]} 33. Nf3 {[%emt 0:00:14][%cal Oh3h7]} Qe7 {[%emt 0:03:04]} 34. Ng5 {[%emt 0:01:07]} Rgf8 {[%emt 0:03:05]} (34... Rd5 $17) 35. Re1 {[%emt 0:01:59]} Nd2 {[%emt 0:01:20]} 36. Rge2 {[%emt 0:02:17] Wards off Ne4} c4 {[%emt 0:02:09]} ({Black should play} 36... Kg8 $15) 37. e6 $11 {[%emt 0:04:00]} Ne4 {[%emt 0:04:55] and ...Rd3 would now be decisive} 38. Nxe4 {[%emt 0:00:57]} fxe4 {[%emt 0:00:18]} 39. Rxe4 {[%emt 0:00:01][%cal Be2e4,Be4c4,Bc4c7,Bc7a7][%mdl 32]} Rd3 {[%emt 0:01:21]} 40. Qg2 {[%emt 0:00:00]} Rfd8 {[%emt 0:00:00]} 41. Rxc4 {[%emt 0:06:42][%cal Oc4d4] Rd4! would now be deadly.} Kg7 {[%emt 0:01:55] [#]} (41... Qh4 $11 {remains equal.} 42. Rce4 Rxc3) 42. Qg5 $1 $16 {[%emt 0:00:43]} Qxg5+ {[%emt 0:00:48]} 43. fxg5 {[%emt 0:00:01][%mdl 4096] Endgame KRR-KRR. White is a pawn up.} Re8 {[%emt 0:00:37]} 44. Rc7+ {[%emt 0:01:20]} Kg8 {[%emt 0:00:01]} 45. Rxa7 {[%emt 0:07:07]} Rd6 {[%emt 0:00:20]} (45... Rxc3 $142 46. Kf2 Rc6) 46. e7 {[%emt 0:00:17]} Rc6 {[%emt 0:00:12] Wards off Rc7} 47. Re4 {[%emt 0:01:20]} (47. Kg2 $142) 47... Rxc3 {[%emt 0:00:18]} (47... b5 $142 48. Re3 Rc5) 48. h4 {[%emt 0:00:07] White is more active.} ({White should play} 48. a4) 48... b5 {[%emt 0:00:45][%cal Bb6b5,Bb5c4][%mdl 32]} 49. Kf2 {[%emt 0:01:00]} Rc4 $2 {[%emt 0:00:17][%mdl 8192]} (49... Rd3 $16 50. h5 gxh5) 50. Rxc4 $18 {[%emt 0:00:40]} bxc4 {[%emt 0:00:00]} 51. Ke3 {[%emt 0:00:26]} Kf7 {[%emt 0:00:03]} 52. Kd4 {[%emt 0:00:16]} Rc8 {[%emt 0:00:05] [#]} 53. e8=Q+ $1 {[%emt 0:02:11][%mdl 512]} Kxe8 {[%emt 0:00:01]} 54. Rxh7 $2 {[%emt 0:00:16]} (54. Kc3 $1 $18 {is the precise move to win.}) 1-0

[Event "Azerbaijan-ch 1st League 2025"]
[Site "Baku"]
[Date "2025.01.14"]
[Round "9.13"]
[White "Isfandiyarli, Kamal"]
[Black "Halafov, Ilgar"]
[Result "1-0"]
[Annotator "TA"]
[ECO "E75"]
[WhiteElo "2027"]
[BlackElo "1990"]
[PlyCount "73"]
[EventDate "2025.01.05"]
[EventType "swiss"]
[EventCountry "AZE"]
[SourceTitle "playchess.com"]
[Source "ChessBase"]
[SourceQuality "1"]
[TimeControl "40/5400+30:1800+30"]

{[%evp 19,73,47,71,63,127,130,155,82,77,77,107,63,61,54,93,90,85,59,60,29,102,99,146,142,147,135,129,86,89,87,97,97,94,33,42,-89,-76,-67,0,-138,-66,-96,-70,-82,-129,-140,-140,-370,-20,-50,1237,1223,29998,29998,29998,29999]} 1. d4 {[%emt 0:02:41]} Nf6 {[%emt 0:00:02]} 2. c4 {[%emt 0:00:07]} g6 {[%emt 0:00:06]} 3. Nc3 {[%emt 0:00:06]} Bg7 {[%emt 0:00:07]} 4. e4 {[%emt 0:00:07]} d6 {[%emt 0:00:04]} 5. Be2 {[%emt 0:00:05]} O-O {[%emt 0:00:09]} 6. Bg5 {[%emt 0:00:04]} c5 {[%emt 0:00:09]} 7. d5 {[%emt 0:00:04]} e6 {[%emt 0:00:07]} 8. Qd2 {[%emt 0:00:06]} exd5 {[%emt 0:02:24]} 9. exd5 {[%emt 0:00:10]} Re8 {[%emt 0:05:21]} 10. Nf3 {[%emt 0:01:43]} Bf5 {[%emt 0:02:44]} 11. O-O {[%emt 0:00:07]} Qd7 {[%emt 0:08:07]} (11... Na6 $14) 12. Nh4 $16 {[%emt 0:08:07]} Na6 {[%emt 0:14:46] [#]} 13. Nxf5 {[%emt 0:01:02]} (13. f3 $142 $1) 13... Qxf5 {[%emt 0:00:01]} 14. Bd3 {[%emt 0:01:52] Inhibits Ne4.} Qd7 {[%emt 0:01:38]} 15. h3 {[%emt 0:04:25]} Nc7 {[%emt 0:03:18][%cal Ob7b5]} 16. a4 {[%emt 0:09:28]} Rf8 {[%emt 0:06:07]} 17. f4 {[%emt 0:11:08]} h6 {[%emt 0:05:07]} 18. Bh4 {[%emt 0:00:44]} Rae8 {[%emt 0:03:55]} 19. a5 {[%emt 0:10:21]} Ra8 {[%emt 0:07:40]} (19... Na6 $11) 20. Kh1 {[%emt 0:03:43]} Rfe8 {[%emt 0:00:24]} ({Better is} 20... Qd8 21. f5 g5) 21. Bxf6 {[%emt 0:02:04]} Bxf6 {[%emt 0:00:11]} 22. Ne4 {[%emt 0:00:11]} Qd8 {[%emt 0:03:15]} 23. f5 {[%emt 0:11:25]} g5 {[%emt 0:00:33]} 24. Qd1 {[%emt 0:00:21]} Kg7 {[%emt 0:07:31]} 25. Qh5 {[%emt 0:00:09]} Rh8 {[%emt 0:02:29]} 26. Rae1 {[%emt 0:00:30] White has more active pieces. Black is weak on the light squares} ({White should play} 26. Ra3 $16) 26... Ne8 $14 {[%emt 0:00:45]} 27. b4 {[%emt 0:12:17]} cxb4 $17 {[%emt 0:01:50]} 28. c5 {[%emt 0:00:14]} dxc5 {[%emt 0:03:10]} (28... Qxa5 $15 29. cxd6 (29. Nxd6 $2 Nxd6 30. cxd6 Qxd5 $19) 29... Qxd5) 29. Nxc5 {[%emt 0:01:54]} (29. Bc4 $1 $11 Nd6 30. Nxd6 Qxd6 31. Re6) 29... Qxd5 {[%emt 0:05:36]} (29... Qxa5 $17 30. Rc1 (30. Nxb7 $2 Qb6 $19) (30. Ne6+ Kg8 $17) 30... Qb6) 30. Rc1 $1 $15 {[%emt 0:05:23] [#]} Nd6 $1 {[%emt 0:04:45] Prevents Bc4.} 31. Ne6+ {[%emt 0:03:05]} Kg8 $1 {[%emt 0:01:11]} (31... fxe6 32. Qg6+ Kf8 33. Qxf6+ Nf7 34. fxe6 (34. Qxe6 Qxd3 35. Rfd1 Qa6 $17)) 32. Rfd1 {[%emt 0:05:00] aiming for Nc7.} Rc8 {[%emt 0:04:58] aiming for ...Rxc1.} (32... fxe6 33. Qg6+ Kf8 34. Qxf6+ Nf7 35. fxe6 $18 (35. Qxe6 Qxe6 36. fxe6 Ne5 $18)) 33. Bc4 $2 {[%emt 0:03:02]} (33. Bf1 $17 {was worth a try.} Rxc1 (33... Qxf5 34. Rxc8+ Nxc8 35. Bc4 $11) 34. Rxd5 Rxf1+ 35. Kh2) 33... Qe5 $2 {[%emt 0:05:41]} (33... Rxc4 $19 34. Rxd5 Rxc1+ 35. Kh2 b3 (35... fxe6 36. Qg6+ Kf8 37. Qxf6+ Kg8 38. Rxd6 Rc8 39. Qxe6+ Kf8 40. Qxc8+ Kg7 41. Qxb7+ Kg8 42. Rd8#) 36. Rxd6 Be5+ (36... fxe6 37. Qg6+ Kf8 38. Qxf6+ Kg8 39. Rd8+ Kh7 40. Rxh8#) 37. g3 Bxd6 38. Nxg5 Rc2+ 39. Kh1 Rh7 (39... hxg5 40. Qxg5+ Kf8 41. Qd8+ Kg7 42. Qg5+ Kh7 43. f6 $11)) 34. Rxd6 $1 $11 {[%emt 0:02:11][%cal Oe6g5] Threatening mate with Nxg5!.} Qxd6 $4 {[%emt 0:02:18][%mdl 8192] [#]} (34... Rxc4 $15 35. Rcd1 (35. Rxc4 $2 {perishes.} Qe1+ 36. Kh2 Be5+ $19) 35... Rc8 (35... fxe6 36. Rd8+ Bxd8 37. Rxd8+ Kh7 38. Qg6#)) 35. Nxg5 $1 $18 {[%emt 0:00:35][%csl Gc4,Gg5][%cal Rh5f7][%mdl 512]} Rf8 {[%emt 0:00:53]} (35... Rc7 36. Nxf7) 36. Qg6+ {[%emt 0:00:20]} Bg7 {[%emt 0:00:14]} 37. Bxf7+ {[%emt 0:00:12]} 1-0

[Event "Azerbaijan-ch 1st League 2025"]
[Site "Baku"]
[Date "2025.01.14"]
[Round "9.15"]
[White "Alizada, Agshin"]
[Black "Baghirov, Orkhan"]
[Result "1-0"]
[Annotator "TA"]
[ECO "A43"]
[WhiteElo "2116"]
[BlackElo "1989"]
[PlyCount "74"]
[EventDate "2025.01.05"]
[EventType "swiss"]
[EventCountry "AZE"]
[SourceTitle "playchess.com"]
[Source "ChessBase"]
[SourceQuality "1"]
[TimeControl "40/5400+30:1800+30"]

{[%evp 9,74,41,88,84,95,101,123,122,116,91,143,145,139,122,128,83,97,54,55,48,93,86,104,99,128,140,132,143,144,81,82,93,86,48,62,47,45,50,54,47,275,271,265,243,258,243,298,295,416,433,461,441,477,441,587,596,586,565,485,293,694,693,628,659,623,622,571]} 1. d4 {[%emt 0:00:02]} Nf6 {[%emt 0:01:36]} 2. Nf3 {[%emt 0:00:09]} c5 {[%emt 0:01:28]} 3. d5 {[%emt 0:00:06]} e6 {[%emt 0:00:04]} 4. Nc3 {[%emt 0:02:52]} d6 {[%emt 0:06:09]} 5. e4 {[%emt 0:00:29]} e5 {[%emt 0:01:26]} (5... Be7 $14 {is superior.}) 6. h3 {[%emt 0:00:36]} a6 {[%emt 0:01:56]} 7. a4 {[%emt 0:00:05]} g6 {[%emt 0:01:05]} 8. Be2 {[%emt 0:04:28]} Bg7 {[%emt 0:00:11]} 9. Nd2 {[%emt 0:00:08]} O-O {[%emt 0:01:02]} (9... Nbd7 $142) 10. Nc4 $16 {[%emt 0:00:16]} Ne8 {[%emt 0:01:21]} 11. g4 {[%emt 0:00:05]} Nd7 {[%emt 0:04:23]} 12. Be3 {[%emt 0:00:55] White is much more active.} Nb6 {[%emt 0:00:40]} 13. Na3 {[%emt 0:00:56]} Bd7 {[%emt 0:00:08]} 14. b3 {[%emt 0:01:27]} Rb8 {[%emt 0:05:56]} 15. Qd2 {[%emt 0:01:33]} Nc7 {[%emt 0:00:41]} 16. h4 {[%emt 0:00:46]} f5 {[%emt 0:01:23]} 17. gxf5 {[%emt 0:01:15]} gxf5 {[%emt 0:00:02] and ...f4 would now be decisive} 18. Bg5 {[%emt 0:02:52]} Qe8 {[%emt 0:04:58]} 19. Rg1 {[%emt 0:04:52]} ({White should try} 19. O-O-O) 19... Kh8 {[%emt 0:01:10]} 20. a5 {[%emt 0:09:55]} (20. Bh6 {looks sharper.} Bxh6 21. Qxh6 Qe7 22. Rg6) 20... Nc8 {[%emt 0:01:12]} 21. Bh6 {[%emt 0:00:26]} (21. exf5 {simplifies} Bxf5 22. O-O-O b5 23. axb6 Nxb6 24. f3) 21... Bxh6 $1 {[%emt 0:06:29]} 22. Qxh6 {[%emt 0:00:34]} Qe7 $1 {[%emt 0:00:02] Prevents Qg7+} 23. O-O-O {[%emt 0:04:05]} Rf6 $1 {[%emt 0:02:12] Repels Rg6} 24. Qg5 $40 {[%emt 0:02:10][%csl Gg1][%cal Rg5g8][%mdl 128] White is up to no good.} Na7 $2 {[%emt 0:07:23] [#]} (24... Qf8 $14) 25. f4 $1 $18 {[%emt 0:02:02]} h6 {[%emt 0:04:50] [#]} 26. Qg2 $1 {[%emt 0:00:09]} Rff8 {[%emt 0:02:58]} 27. Nc4 {[%emt 0:22:26]} Ncb5 {[%emt 0:03:17]} 28. Nxb5 {[%emt 0:06:46]} Nxb5 {[%emt 0:00:28]} (28... Bxb5 $142 29. fxe5 (29. Qg6 Rf6 $14) 29... Bxc4) 29. fxe5 {[%emt 0:00:22]} dxe5 {[%emt 0:00:09]} 30. Qg6 {[%emt 0:10:37][%cal Oc4e5]} Rf6 {[%emt 0:02:20] [#]} 31. Nxe5 $1 {[%emt 0:00:02][%cal Od5d6]} Nd4 {[%emt 0:00:01] [#]} (31... Nd6 32. Qg3) 32. Rxd4 $1 {[%emt 0:00:49]} cxd4 {[%emt 0:00:20] [#]} 33. d6 $1 {[%emt 0:00:11][%mdl 512]} Qf8 {[%emt 0:00:46]} 34. Bc4 {[%emt 0:01:11]} Rxg6 $2 {[%emt 0:04:34]} (34... Rd8 35. h5 fxe4) 35. Nxg6+ {[%emt 0:00:28]} Kh7 {[%emt 0:00:01]} 36. Nxf8+ {[%emt 0:00:10]} Rxf8 {[%emt 0:00:01]} 37. e5 {[%emt 0:00:09] e6 would now be deadly.} Re8 {[%emt 0:00:02]} 1-0